bitfinex-derivatives/quotes_BTCF0:USTF0_20250121
["timestamp","ask_amount","ask_price","bid_price","bid_amount"]
[1737470508223,0.00014477,103420.0,103410.0,0.048401]
[1737470508510,0.00014477,103420.0,103410.0,0.42433248]
[1737470508711,0.3608,103450.0,103440.0,0.048387]
[1737470509107,0.3608,103450.0,103420.0,0.048393]
[1737470509317,0.7216,103430.0,103420.0,4.34e-06]
[1737470509517,0.7216,103430.0,103420.0,0.04840034]
[1737470509721,0.7216,103430.0,103420.0,4.34e-06]
[1737470510218,0.7216,103430.0,103420.0,0.04840134]
[1737470510619,0.7286,103430.0,103420.0,0.04840134]
[1737470510925,0.7286,103430.0,103420.0,4.34e-06]
[1737470511622,0.7286,103430.0,103420.0,0.04840134]
[1737470511914,0.98403396,103430.0,103420.0,4.34e-06]
[1737470512307,1.23764196,103430.0,103350.0,0.3608]
[1737470512509,0.3608,103370.0,103360.0,0.048421]
[1737470512707,0.3608,103370.0,103360.0,0.06355663]
[1737470512922,0.3608,103370.0,103360.0,0.048421]
[1737470513213,0.3608,103380.0,103370.0,0.04842]
[1737470513418,0.36087136,103380.0,103370.0,0.04842]
[1737470514119,0.3608,103430.0,103380.0,0.048415]
[1737470514416,0.3608,103430.0,103400.0,0.20704196]
[1737470514717,0.3608,103420.0,103410.0,0.0484]
[1737470515317,0.3608,103420.0,103400.0,0.3608]
[1737470515626,0.36094477,103430.0,103420.0,0.048397]
[1737470516111,0.40933777,103430.0,103400.0,0.04854977]
[1737470516309,0.3608,103410.0,103400.0,0.00014477]
[1737470516507,0.3608,103410.0,103400.0,0.04855077]
[1737470516821,0.7216,103410.0,103400.0,0.04855077]
[1737470517315,0.7216,103410.0,103400.0,0.04955077]
[1737470518219,0.28344477,103430.0,103410.0,0.048401]
[1737470518220,0.3608,103420.0,103410.0,0.048401]
[1737470518419,0.7216,103420.0,103400.0,1.50114477]
[1737470518621,0.409201,103410.0,103400.0,0.00014477]
[1737470518827,0.416201,103410.0,103380.0,0.048414]
[1737470519028,0.3608,103390.0,103380.0,0.048414]
[1737470519322,0.3608,103400.0,103390.0,0.048411]
[1737470519821,0.3608,103400.0,103390.0,0.06354466]
[1737470520022,0.3608,103400.0,103390.0,0.06354412]
[1737470520219,0.36994477,103410.0,103400.0,0.048406]
[1737470520719,0.36994477,103410.0,103400.0,0.06353868]
[1737470520923,0.36994477,103410.0,103400.0,1.56353868]
[1737470521418,0.00914477,103410.0,103400.0,1.51513268]
[1737470521627,0.00014477,103410.0,103400.0,1.92433868]
[1737470522014,0.52995534,103430.0,103420.0,0.048397]
[1737470522214,0.89075534,103430.0,103420.0,0.06352968]
[1737470522617,0.52995534,103430.0,103420.0,0.27057164]
[1737470523218,3.4e-07,103430.0,103420.0,0.63137164]
[1737470523422,3.4e-07,103430.0,103420.0,0.72806006]
[1737470523623,0.00500034,103430.0,103420.0,0.72906006]
[1737470523815,0.00014477,103440.0,103420.0,0.72906006]
[1737470524017,0.00014477,103440.0,103430.0,0.409192]
[1737470524217,0.00014477,103440.0,103430.0,0.42432468]
[1737470524421,0.00014477,103440.0,103430.0,0.37593602]
[1737470524620,7.7e-07,103440.0,103430.0,0.47261509]
[1737470524822,0.19683446,103450.0,103440.0,0.25542896]
[1737470525025,0.3608,103470.0,103460.0,0.048378]
[1737470525026,0.55763446,103470.0,103460.0,0.048378]
[1737470525223,0.55763446,103470.0,103460.0,0.06351068]
[1737470525425,0.19683446,103470.0,103460.0,0.27055264]
[1737470525622,0.07177346,103470.0,103460.0,0.27055264]
[1737470525921,0.07177346,103470.0,103460.0,0.27054228]
[1737470526319,0.07177346,103470.0,103460.0,1.77054228]
[1737470526516,0.07177346,103470.0,103460.0,1.77154228]
[1737470526517,0.08077346,103470.0,103460.0,1.77154228]
[1737470526713,0.44157346,103470.0,103460.0,0.06450032]
[1737470527126,0.44157346,103470.0,103460.0,0.27154228]
[1737470527423,0.44157346,103470.0,103460.0,1.77154228]
[1737470527616,0.44157346,103470.0,103460.0,1.72315362]
[1737470527816,0.44157346,103470.0,103460.0,1.549378]
[1737470528226,0.43757346,103470.0,103460.0,0.049378]
[1737470528525,0.43757346,103470.0,103420.0,0.409197]
[1737470528526,0.99298842,103470.0,103400.0,0.32320847]
[1737470528727,0.3608,103410.0,103400.0,0.04850947]
[1737470528927,0.3608,103420.0,103410.0,0.048399]
[1737470529225,0.3608,103420.0,103400.0,0.04850847]
[1737470529433,0.3608,103410.0,103400.0,0.04850847]
[1737470529618,0.3608,103410.0,103400.0,0.33725582]
[1737470530024,0.3608,103410.0,103400.0,0.34625582]
[1737470530524,0.3608,103410.0,103400.0,0.29786716]
[1737470530728,0.3608,103410.0,103400.0,0.34615035]
[1737470531133,0.3608,103410.0,103400.0,0.55319231]
[1737470531329,0.3608,103410.0,103400.0,0.34615035]
[1737470531526,0.40932489,103410.0,103400.0,0.29774735]
[1737470531727,0.36092389,103410.0,103400.0,0.34615335]
[1737470531933,0.36092389,103410.0,103400.0,0.33715335]
[1737470532929,0.00014477,103420.0,103410.0,0.048401]
[1737470533132,0.3608,103440.0,103410.0,0.048401]
[1737470533332,0.50176439,103450.0,103430.0,0.048392]
[1737470533637,0.50176439,103450.0,103430.0,0.04839034]
[1737470533839,0.50176439,103450.0,103440.0,0.048387]
[1737470534130,0.50176439,103450.0,103440.0,1.548387]
[1737470534330,0.51,103490.0,103440.0,1.548387]
[1737470534331,0.3608,103490.0,103440.0,2.00587542]
[1737470534533,0.4608,103500.0,103490.0,0.048364]
[1737470534534,0.1,103500.0,103490.0,0.048364]
[1737470535132,0.1,103500.0,103490.0,1.548364]
[1737470535326,0.4608,103500.0,103490.0,1.548364]
[1737470535633,0.4608,103500.0,103480.0,0.04851177]
[1737470535821,0.3608,103490.0,103480.0,0.04851177]
[1737470536027,0.409164,103490.0,103480.0,0.00014477]
[1737470536222,0.409164,103490.0,103460.0,0.04982698]
[1737470536424,0.7216,103470.0,103460.0,0.04982698]
[1737470536630,0.7216,103470.0,103440.0,1.59677]
[1737470536835,0.3608,103480.0,103470.0,0.04837]
[1737470537322,0.3608,103480.0,103440.0,1.909187]
[1737470537531,0.3608,103480.0,103470.0,0.048373]
[1737470537724,0.00914477,103490.0,103480.0,0.048369]
[1737470538127,0.1,103500.0,103480.0,0.409169]
[1737470538327,1.14292946,103540.0,103530.0,0.048345]
[1737470538630,0.86862946,103540.0,103530.0,0.048345]
[1737470539434,0.86862946,103540.0,103520.0,0.04849477]
[1737470539626,0.3608,103530.0,103510.0,1.548354]
[1737470539824,0.3608,103520.0,103500.0,0.048358]
[1737470540032,0.3608,103510.0,103500.0,0.048358]
[1737470540934,0.3608,103510.0,103490.0,0.04995723]
[1737470541131,0.3608,103500.0,103490.0,0.00159423]
[1737470541441,0.3588,103500.0,103490.0,0.04995823]
[1737470541740,0.3608,103510.0,103500.0,0.048359]
[1737470541943,0.00014477,103520.0,103510.0,0.048355]
[1737470542128,0.36094477,103520.0,103510.0,0.048355]
[1737470542330,0.00014477,103520.0,103510.0,0.048355]
[1737470542945,0.00014477,103520.0,103510.0,0.09660435]
[1737470543241,0.00014477,103520.0,103510.0,0.330155]
[1737470543643,0.86862946,103540.0,103510.0,0.330155]
[1737470543838,0.19668358,103580.0,103570.0,0.048327]
[1737470544044,0.19668358,103580.0,103570.0,0.25536896]
[1737470544235,0.19668358,103580.0,103570.0,0.61616896]
[1737470544546,0.22514664,103590.0,103580.0,0.048322]
[1737470544747,0.2573573,103600.0,103580.0,0.409122]
[1737470544950,0.28268282,103610.0,103600.0,0.048313]
[1737470545144,0.31509616,103620.0,103600.0,0.409113]
[1737470545344,0.3608,103650.0,103640.0,0.048294]
[1737470545548,0.73309582,103680.0,103640.0,1.8608]
[1737470545847,0.00192919,103670.0,103660.0,0.409085]
[1737470546044,0.37229582,103680.0,103660.0,0.61612696]
[1737470546242,0.37244059,103680.0,103670.0,0.04828]
[1737470546442,0.3608,103720.0,103670.0,0.3608]
[1737470546643,0.3608,103720.0,103710.0,0.25530296]
[1737470546846,0.81901024,103730.0,103710.0,0.20704196]
[1737470547547,0.3608,103780.0,103760.0,0.048234]
[1737470547849,0.3608,103770.0,103730.0,0.56784196]
[1737470548040,0.1680262,103760.0,103750.0,0.25528496]
[1737470548448,0.1680262,103760.0,103750.0,0.048243]
[1737470548748,0.1680262,103760.0,103750.0,0.409043]
[1737470548948,0.1680262,103760.0,103750.0,0.36065434]
[1737470549255,0.1680262,103760.0,103740.0,0.00014477]
[1737470549441,0.1700262,103760.0,103750.0,0.56784196]
[1737470549645,0.1700262,103760.0,103750.0,0.61608496]
[1737470550247,0.1700262,103760.0,103740.0,0.40919177]
[1737470550848,0.1700262,103760.0,103740.0,0.00014477]
[1737470551253,0.002,103760.0,103740.0,0.00014477]
[1737470551441,0.3608,103750.0,103720.0,0.56784196]
[1737470551753,0.3628,103760.0,103720.0,0.61609696]
[1737470551754,0.050238,103760.0,103720.0,0.61609696]
[1737470552058,0.048244,103750.0,103710.0,0.3608]
[1737470552243,0.409049,103740.0,103710.0,0.3608]
[1737470552449,0.409049,103740.0,103720.0,0.20704196]
[1737470552648,0.409049,103740.0,103710.0,0.3608]
[1737470552955,0.00014477,103740.0,103730.0,0.3608]
[1737470553153,0.00014477,103740.0,103720.0,0.56884196]
[1737470553154,0.00014477,103740.0,103720.0,0.61709696]
[1737470553358,0.7216,103730.0,103710.0,0.00014477]
[1737470553650,0.56784196,103720.0,103670.0,0.3608]
[1737470553954,0.00214477,103740.0,103720.0,0.001]
[1737470554160,0.002,103740.0,103720.0,0.049254]
[1737470554452,0.002,103740.0,103730.0,0.048252]
[1737470554651,0.2803,103780.0,103730.0,0.3608]
[1737470554847,0.3608,103790.0,103770.0,0.20704196]
[1737470555159,0.3608,103800.0,103770.0,0.20704196]
[1737470555654,0.00014477,103790.0,103780.0,0.409029]
[1737470555954,0.00014477,103790.0,103780.0,0.61607096]
[1737470556148,0.00014477,103790.0,103780.0,1.548229]
[1737470556456,0.36094477,103790.0,103780.0,1.5]
[1737470556653,0.00014477,103790.0,103780.0,1.5]
[1737470556852,0.00014477,103790.0,103780.0,2.11607096]
[1737470557055,0.00214477,103790.0,103780.0,2.11607096]
[1737470557358,0.00214477,103790.0,103780.0,1.909029]
[1737470557547,0.00214477,103790.0,103780.0,1.548229]
[1737470557747,0.00214477,103790.0,103780.0,1.5]
[1737470557947,0.00214477,103790.0,103770.0,0.00014477]
[1737470557948,0.00193192,103790.0,103760.0,0.56783407]
[1737470558158,0.3608,103780.0,103770.0,0.048232]
[1737470558756,0.00193192,103790.0,103770.0,0.409032]
[1737470558953,0.3608,103810.0,103780.0,0.048229]
[1737470559155,0.001,103790.0,103760.0,1.8608]
[1737470559357,0.36194477,103790.0,103770.0,0.04837777]
[1737470559654,0.00014477,103790.0,103770.0,0.00014477]
[1737470559858,0.00083267,103770.0,103760.0,0.048236]
[1737470560156,0.20704196,103810.0,103760.0,0.048236]
[1737470560157,0.6366,103820.0,103760.0,0.66419963]
[1737470560453,0.3608,103770.0,103760.0,0.25527796]
[1737470560658,0.40902,103800.0,103760.0,0.25527796]
[1737470560847,0.3608,103800.0,103770.0,0.04823]
[1737470561049,0.3608,103790.0,103770.0,0.048231]
[1737470561245,0.3608,103780.0,103760.0,0.048238]
[1737470561445,0.3608,103790.0,103770.0,0.00014477]
[1737470561655,0.3608,103780.0,103770.0,0.00014477]
[1737470562145,0.36094477,103800.0,103770.0,0.00014477]
[1737470562351,0.3608,103790.0,103780.0,0.048229]
[1737470562851,0.00014477,103800.0,103770.0,0.36194477]
[1737470563053,0.00014477,103800.0,103790.0,0.048224]
[1737470563557,0.36094477,103800.0,103780.0,0.049229]
[1737470563757,0.00014477,103800.0,103780.0,0.049229]
[1737470563957,0.00014477,103800.0,103790.0,0.048224]
[1737470564460,0.3608,103830.0,103790.0,0.769824]
[1737470564656,0.1,103900.0,103820.0,0.97685196]
[1737470564657,0.47067575,103900.0,103820.0,0.97685196]
[1737470564858,0.4608,103900.0,103870.0,0.048186]
[1737470565164,0.1,103900.0,103880.0,0.408982]
[1737470565355,0.3608,103890.0,103870.0,0.00052]
[1737470565555,0.3608,103880.0,103850.0,0.048195]
[1737470565855,0.048189,103870.0,103840.0,0.3608]
[1737470566055,0.25522596,103880.0,103840.0,0.408998]
[1737470566259,0.3608,103880.0,103850.0,0.3608]
[1737470566559,1.054875,103900.0,103860.0,0.048188]
[1737470567160,0.40912477,103890.0,103870.0,0.00114477]
[1737470567359,0.048182,103880.0,103870.0,0.00114477]
[1737470567558,0.408982,103880.0,103870.0,0.00114477]
[1737470567861,0.00014477,103890.0,103870.0,0.36194477]
[1737470568158,0.3608,103880.0,103870.0,0.00114477]
[1737470568358,0.04832377,103890.0,103870.0,0.00114477]
[1737470568359,0.40912377,103890.0,103870.0,0.00114477]
[1737470568663,0.40912377,103890.0,103870.0,0.00014477]
[1737470568857,0.3608,103880.0,103870.0,0.00014477]
[1737470569059,0.408982,103880.0,103870.0,0.00014477]
[1737470569363,0.708982,103880.0,103870.0,0.001]
[1737470569566,0.708982,103880.0,103830.0,0.41044887]
[1737470569567,0.048193,103860.0,103830.0,0.41044887]
[1737470569771,0.408993,103860.0,103830.0,0.41044887]
[1737470570150,0.408993,103860.0,103830.0,0.36206021]
[1737470570360,0.048196,103850.0,103830.0,0.31385621]
[1737470570653,0.048196,103850.0,103830.0,0.00014477]
[1737470570654,0.409001,103840.0,103830.0,0.00014477]
[1737470570858,0.04821,103820.0,103810.0,7.278e-05]
[1737470571058,0.7216,103820.0,103790.0,0.00144477]
[1737470571364,0.409017,103810.0,103780.0,0.409028]
[1737470571561,0.3608,103800.0,103770.0,0.3608]
[1737470571761,0.04822,103800.0,103770.0,0.048233]
[1737470571961,0.409016,103810.0,103780.0,0.048228]
[1737470572163,0.00014477,103800.0,103780.0,0.048228]
[1737470572359,0.00014477,103800.0,103790.0,0.048224]
[1737470572560,0.00014477,103800.0,103790.0,0.409024]
[1737470572755,7.7e-07,103800.0,103790.0,0.409024]
[1737470573061,7.7e-07,103800.0,103780.0,0.56884196]
[1737470573062,0.048203,103840.0,103780.0,0.61706896]
[1737470573363,0.048207,103830.0,103790.0,0.3608]
[1737470573557,0.3608,103840.0,103810.0,0.048211]
[1737470573558,0.409002,103840.0,103810.0,0.048211]
[1737470573756,0.3608,103840.0,103810.0,0.3608]
[1737470574061,0.61604796,103830.0,103800.0,0.409017]
[1737470574259,0.048211,103820.0,103810.0,0.00014477]
[1737470574460,0.409011,103820.0,103810.0,0.00014477]
[1737470575854,0.92405296,103820.0,103810.0,0.00114477]
[1737470576060,0.048216,103810.0,103780.0,0.409028]
[1737470576263,0.409016,103810.0,103780.0,0.36063934]
[1737470577059,0.04822,103800.0,103780.0,0.048228]
[1737470577258,0.04822,103800.0,103770.0,0.04967776]
[1737470577460,0.36094477,103810.0,103790.0,0.048224]
[1737470577659,0.40916177,103810.0,103780.0,0.04837177]
[1737470577962,0.40916177,103810.0,103780.0,0.04937377]
[1737470577963,0.36994477,103810.0,103780.0,0.04937377]
[1737470578160,0.62520373,103810.0,103780.0,0.04937277]
[1737470578362,0.3608,103800.0,103780.0,0.00114477]
[1737470578560,0.409024,103800.0,103780.0,0.00014477]
[1737470578756,0.409024,103800.0,103790.0,0.001]
[1737470579166,0.3608,103800.0,103780.0,0.001]
[1737470579365,0.36894477,103810.0,103790.0,0.048223]
[1737470579566,0.36894477,103810.0,103790.0,0.048227]
[1737470580472,0.36894477,103810.0,103790.0,0.04837177]
[1737470580775,0.409024,103800.0,103790.0,0.00014477]
[1737470581068,0.418024,103800.0,103790.0,0.00114477]
[1737470581273,0.718024,103800.0,103770.0,0.23059473]
[1737470581471,0.97687596,103780.0,103770.0,0.23059473]
[1737470581776,0.97687596,103780.0,103760.0,0.28874735]
[1737470581777,0.048238,103770.0,103760.0,0.28874735]
[1737470582078,0.409038,103770.0,103760.0,0.28874735]
[1737470582274,0.409038,103770.0,103760.0,0.24035869]
[1737470582775,0.709038,103770.0,103760.0,0.24035869]
[1737470583264,0.048243,103760.0,103750.0,0.3465069]
[1737470583465,0.048248,103750.0,103740.0,0.40103148]
[1737470583665,0.409048,103750.0,103740.0,0.40103148]
[1737470583872,0.048248,103750.0,103740.0,0.40103148]
[1737470584079,0.56798673,103760.0,103740.0,0.40103148]
[1737470584576,0.3608,103750.0,103740.0,0.40103148]
[1737470584782,0.409048,103750.0,103740.0,0.40103148]
[1737470584968,0.3608,103750.0,103710.0,1.50052]
[1737470585162,0.3608,103730.0,103710.0,1.5]
[1737470585362,0.20704196,103720.0,103700.0,0.00144675]
[1737470585668,0.7216,103710.0,103690.0,0.85935317]
[1737470585869,0.409071,103700.0,103690.0,0.85935317]
[1737470586074,0.3608,103700.0,103690.0,0.90762917]
[1737470586274,0.3608,103710.0,103690.0,2.40762917]
[1737470587265,0.3608,103700.0,103690.0,2.35935317]
[1737470587474,0.3608,103700.0,103690.0,0.85935317]
[1737470587866,0.3608,103700.0,103690.0,0.86035317]
[1737470588076,0.61611296,103700.0,103690.0,0.86035317]
[1737470588375,0.91611296,103700.0,103690.0,0.81196451]
[1737470588561,0.92011296,103700.0,103690.0,0.7439645]
[1737470588962,0.048277,103690.0,103670.0,0.00052]
[1737470589169,0.048277,103690.0,103650.0,0.3608]
[1737470589170,0.3608,103680.0,103650.0,0.3608]
[1737470589388,0.3608,103680.0,103660.0,0.048288]
[1737470589677,0.36094477,103680.0,103650.0,0.409093]
[1737470589878,0.36094477,103680.0,103660.0,0.048288]
[1737470590468,0.00014477,103680.0,103660.0,0.048288]
[1737470590979,0.00014477,103680.0,103670.0,0.048285]
[1737470591374,0.00014477,103680.0,103660.0,0.048289]
[1737470591569,0.00014477,103680.0,103650.0,0.36070434]
[1737470591570,0.36094477,103680.0,103650.0,0.36070434]
[1737470591774,0.57098673,103680.0,103660.0,1.548289]
[1737470591974,0.36394477,103680.0,103660.0,1.548289]
[1737470592176,0.36394477,103680.0,103670.0,0.048285]
[1737470592475,0.00314477,103680.0,103670.0,0.048285]
[1737470592681,0.3608,103710.0,103690.0,0.048276]
[1737470592878,0.3608,103710.0,103690.0,0.409076]
[1737470593074,0.3608,103710.0,103690.0,0.048276]
[1737470593274,0.409066,103710.0,103700.0,1.5]
[1737470593576,0.009,103680.0,103650.0,0.55157819]
[1737470593772,0.009,103680.0,103670.0,0.048285]
[1737470593969,0.3608,103710.0,103690.0,0.00014477]
[1737470594173,0.3608,103700.0,103680.0,0.3608]
[1737470594378,0.009,103710.0,103690.0,0.6169973]
[1737470594566,0.3608,103760.0,103700.0,1.909071]
[1737470594881,0.3608,103760.0,103750.0,0.048248]
[1737470595577,0.3608,103760.0,103730.0,0.048256]
[1737470595777,0.3608,103740.0,103710.0,0.27424651]
[1737470596076,0.409052,103740.0,103710.0,0.63504651]
[1737470596281,0.409052,103740.0,103710.0,0.40920977]
[1737470596480,0.36094477,103740.0,103710.0,0.40920977]
[1737470596675,0.3608,103720.0,103710.0,0.00014477]
[1737470596876,0.409062,103720.0,103710.0,0.00014477]
[1737470597077,0.3608,103720.0,103710.0,0.00014477]
[1737470597381,0.3608,103720.0,103700.0,2.711e-05]
[1737470597572,0.409058,103730.0,103690.0,0.6336]
[1737470597769,0.409058,103730.0,103690.0,0.681871]
[1737470597969,0.409058,103730.0,103700.0,0.04827]
[1737470598173,0.3638,103720.0,103710.0,0.001]
[1737470598478,0.61910396,103720.0,103710.0,0.001]
[1737470598679,0.04827,103710.0,103700.0,0.00014477]
[1737470598976,0.40907,103710.0,103700.0,0.00014477]
[1737470599185,0.048271,103700.0,103690.0,0.001]
[1737470599370,0.409067,103710.0,103690.0,0.001]
[1737470599684,0.3608,103720.0,103690.0,0.049272]
[1737470599883,0.3608,103720.0,103690.0,0.001]
[1737470600081,0.3608,103720.0,103690.0,0.049273]
[1737470600476,0.3608,103710.0,103690.0,0.048272]
[1737470600678,0.3608,103710.0,103680.0,0.52090013]
[1737470600877,0.3608,103710.0,103700.0,0.048271]
[1737470601284,0.00714477,103720.0,103710.0,0.048266]
[1737470601779,0.00014477,103720.0,103700.0,0.04827]
[1737470601979,0.00014477,103720.0,103710.0,0.048266]
[1737470602384,0.00014477,103720.0,103710.0,1.5]
[1737470602573,0.36094477,103720.0,103710.0,1.5]
[1737470603083,0.00014477,103720.0,103710.0,1.548266]
[1737470603581,0.00014477,103720.0,103710.0,0.048266]
[1737470603780,0.00414477,103720.0,103710.0,0.048266]
[1737470604083,0.36494477,103720.0,103700.0,0.04927]
[1737470604283,0.00414477,103720.0,103700.0,0.04927]
[1737470604581,0.3608,103710.0,103690.0,0.671572]
[1737470604884,0.05140677,103720.0,103700.0,0.048271]
[1737470604885,0.00314477,103720.0,103700.0,0.048271]
[1737470605085,0.00314477,103720.0,103710.0,0.048266]
[1737470606177,0.00314477,103720.0,103700.0,1.548269]
[1737470606374,0.00314477,103720.0,103700.0,0.409067]
[1737470606579,0.00314477,103720.0,103700.0,0.36067834]
[1737470606782,0.00014477,103720.0,103710.0,0.048266]
[1737470607079,0.00314477,103720.0,103710.0,0.048266]
[1737470607778,0.00014477,103720.0,103710.0,0.048266]
[1737470607979,0.00314477,103720.0,103710.0,0.61610796]
[1737470608483,0.00944747,103760.0,103740.0,0.04825]
[1737470608484,0.3608,103760.0,103740.0,0.04825]
[1737470608788,0.3608,103760.0,103750.0,0.048248]
[1737470608983,0.14060471,103780.0,103740.0,0.40905]
[1737470609182,0.50140471,103780.0,103760.0,0.048242]
[1737470609386,0.54963971,103780.0,103760.0,1.548242]
[1737470609582,0.50140471,103780.0,103760.0,1.49985334]
[1737470609774,0.50154948,103780.0,103760.0,0.04838577]
[1737470610493,0.3608,103770.0,103760.0,0.00014477]
[1737470611187,0.3608,103770.0,103720.0,0.84292]
[1737470611188,0.04825,103750.0,103720.0,0.482124]
[1737470611393,0.3608,103730.0,103720.0,0.171163]
[1737470611582,0.61609896,103730.0,103720.0,0.171163]
[1737470612091,0.409057,103730.0,103720.0,0.171163]
[1737470612385,0.61609896,103730.0,103720.0,0.171163]
[1737470612591,0.61609896,103730.0,103720.0,0.12277434]
[1737470612983,0.048265,103720.0,103700.0,0.3441119]
[1737470613289,0.7216,103710.0,103700.0,0.3441119]
[1737470613589,0.769866,103710.0,103700.0,0.3441119]
[1737470614288,1.27690796,103710.0,103700.0,0.001]
[1737470614489,0.048278,103690.0,103660.0,0.60440527]
[1737470614690,0.3608,103680.0,103660.0,0.60440527]
[1737470614881,0.3608,103670.0,103660.0,0.28741627]
[1737470615082,0.61612696,103670.0,103660.0,0.28741627]
[1737470615684,0.3608,103670.0,103660.0,0.23902761]
[1737470616393,0.3608,103670.0,103660.0,0.28731661]
[1737470617089,0.3608,103700.0,103690.0,0.048276]
[1737470617295,0.3608,103710.0,103690.0,0.048276]
[1737470617493,0.3608,103710.0,103700.0,0.048271]
[1737470617788,0.3608,103720.0,103700.0,0.048269]
[1737470617984,0.3608,103710.0,103690.0,0.409075]
[1737470618184,0.5021178,103710.0,103700.0,0.048271]
[1737470618379,0.16921921,103720.0,103700.0,0.61611296]
[1737470618583,0.3608,103760.0,103710.0,0.409066]
[1737470618789,0.3608,103760.0,103720.0,0.56784196]
[1737470618988,0.56784196,103770.0,103750.0,0.409048]
[1737470619192,0.3608,103770.0,103750.0,0.048248]
[1737470619392,0.3608,103770.0,103750.0,0.409048]
[1737470619692,0.3608,103770.0,103760.0,0.048241]
[1737470619693,0.00014477,103770.0,103760.0,0.048241]
[1737470620285,0.00214477,103770.0,103760.0,0.048241]
[1737470620486,0.00214477,103770.0,103760.0,0.409041]
[1737470620691,0.00314477,103770.0,103760.0,0.409041]
[1737470620890,0.00514477,103770.0,103760.0,2.11708296]
[1737470621194,0.00514477,103770.0,103760.0,1.910041]
[1737470621395,0.00214477,103770.0,103760.0,1.910041]
[1737470621695,0.00514477,103770.0,103750.0,0.04839077]
[1737470621897,0.00514477,103770.0,103750.0,0.40919077]
[1737470622190,0.409043,103760.0,103750.0,0.00014477]
[1737470623083,0.709043,103760.0,103750.0,0.00014477]
[1737470623288,0.709043,103760.0,103720.0,0.41050725]
[1737470623289,0.409044,103760.0,103720.0,0.04970725]
[1737470623483,0.3608,103730.0,103720.0,0.04970725]
[1737470623686,0.3608,103730.0,103720.0,0.00144625]
[1737470623994,0.3608,103730.0,103700.0,0.96816535]
[1737470624289,0.3608,103720.0,103700.0,0.39093535]
[1737470624492,0.3608,103710.0,103700.0,0.34281012]
[1737470624792,0.56784196,103710.0,103700.0,0.29442146]
[1737470624985,0.61610796,103710.0,103700.0,0.29442146]
[1737470625188,0.048271,103700.0,103690.0,0.39263056]
[1737470625384,0.3608,103700.0,103670.0,0.46184247]
[1737470625586,0.3608,103680.0,103670.0,0.46132247]
[1737470625982,0.3608,103700.0,103670.0,2.00960747]
[1737470626198,0.409062,103720.0,103680.0,0.048278]
[1737470626398,0.409062,103720.0,103690.0,0.048274]
[1737470626399,0.3618,103720.0,103690.0,0.048274]
[1737470626597,0.00014477,103700.0,103690.0,0.048274]
[1737470627095,0.409058,103730.0,103720.0,0.048262]
[1737470627096,0.3608,103730.0,103720.0,0.048262]
[1737470627299,0.3608,103740.0,103720.0,0.048259]
[1737470628095,0.3608,103740.0,103720.0,0.04840377]
[1737470628290,0.36094477,103740.0,103720.0,0.04840377]
[1737470628486,0.00014477,103740.0,103720.0,0.04840377]
[1737470628705,0.00014477,103740.0,103730.0,0.56784196]
[1737470628890,0.3608,103770.0,103740.0,0.048249]
[1737470629095,0.3608,103750.0,103730.0,0.048254]
[1737470629803,0.3608,103760.0,103730.0,0.3608]
[1737470629999,0.002,103740.0,103730.0,0.410057]
[1737470630195,0.002,103740.0,103730.0,0.41020177]
[1737470630499,0.00214477,103750.0,103740.0,0.048252]
[1737470630798,0.00214477,103750.0,103730.0,0.048256]
[1737470630992,0.00014477,103750.0,103720.0,0.409059]
[1737470631303,0.002,103740.0,103730.0,0.001]
[1737470631597,0.005,103740.0,103730.0,0.049257]
[1737470631900,0.005,103740.0,103730.0,2.11709896]
[1737470632096,0.00014477,103750.0,103730.0,2.11709896]
[1737470632288,0.00014477,103750.0,103740.0,0.409052]
[1737470632489,0.3608,103770.0,103740.0,0.409052]
[1737470632697,0.04823,103790.0,103760.0,0.04824]
[1737470632698,0.3608,103780.0,103760.0,0.04824]
[1737470632902,0.003,103750.0,103740.0,0.410052]
[1737470633101,0.3608,103790.0,103740.0,0.410052]
[1737470633395,0.61606296,103810.0,103780.0,0.04823]
[1737470633602,0.3608,103810.0,103790.0,0.048226]
[1737470633790,0.409016,103820.0,103800.0,0.048223]
[1737470633992,0.00014477,103810.0,103800.0,0.048224]
[1737470634407,0.00014477,103810.0,103800.0,0.409024]
[1737470634702,0.00314477,103810.0,103800.0,0.409024]
[1737470635203,1.11570668,103850.0,103800.0,0.409024]
[1737470635204,0.83260668,103850.0,103800.0,2.11606596]
[1737470635395,0.47180668,103850.0,103840.0,0.048206]
[1737470636004,0.47180668,103850.0,103840.0,0.409006]
[1737470636190,0.47180668,103850.0,103840.0,0.61604796]
[1737470636393,0.47180668,103850.0,103840.0,2.11604796]
[1737470636804,0.47180668,103850.0,103840.0,2.11704796]
[1737470637004,0.47180668,103850.0,103840.0,2.1168653]
[1737470637306,0.22577038,103860.0,103850.0,0.048201]
[1737470637602,0.19800775,103860.0,103850.0,0.409001]
[1737470638902,0.19800775,103860.0,103850.0,0.410001]
[1737470639498,0.19800775,103860.0,103850.0,0.409001]
[1737470639697,0.19800775,103860.0,103850.0,0.410001]
[1737470639894,0.19800775,103860.0,103850.0,0.36161234]
[1737470640090,0.19800775,103860.0,103850.0,0.001]
[1737470640294,0.81404571,103860.0,103830.0,0.40915377]
[1737470640493,0.3608,103850.0,103840.0,0.048206]
[1737470640998,0.60700375,103860.0,103840.0,0.048206]
[1737470641197,0.60700375,103860.0,103830.0,0.36094477]
[1737470641403,0.60700375,103860.0,103830.0,0.40915477]
[1737470641605,0.40914077,103860.0,103840.0,0.048205]
[1737470641804,0.36094477,103860.0,103840.0,0.048205]
[1737470642001,0.00014477,103860.0,103840.0,0.001]
[1737470642204,0.00014477,103860.0,103850.0,0.048201]
[1737470642604,0.00014477,103860.0,103840.0,0.048205]
[1737470642807,0.40914177,103860.0,103830.0,0.04935277]
[1737470643002,0.3608,103840.0,103820.0,0.048215]
[1737470643211,0.3608,103840.0,103830.0,0.04821]
[1737470643505,0.409006,103840.0,103810.0,0.409018]
[1737470643800,0.3608,103830.0,103820.0,0.048215]
[1737470644400,0.00014477,103840.0,103820.0,0.048215]
[1737470644807,0.00014477,103840.0,103830.0,0.04821]
[1737470645002,0.26094477,103850.0,103830.0,0.04821]
[1737470645309,0.3608,103840.0,103820.0,0.048214]